Cogmind - Beta 13 @@@ ROGUE MODE // 2024.05.24 @ 18:20:20 Player: Minty Result: Destroyed by G-73 Enforcer with Phase Gun Performance ------------- Evolutions (9) 4500 Regions Visited (18) 3600 Robots Destroyed (71) 355 Value Destroyed (3001) 3001 Prototype IDs (42) 840 Alien Tech Used (0) 0 Bonus (1642) 1642 TOTAL SCORE: 13938 Bonus ------- High Alert Combat Kills 85 Follower Combat Kills 344 Entered Garrisons 200 Used RIF Installer 500 Entered DSFs 500 Aligned with FarCom 300 Friendly Fire -287 Cogmind --------- Core Integrity 0/1600 Matter 0/300 Energy 100/100 System Corruption 11% Temperature Cool (9) Movement Walking (120) Location -1/Access Parts ------- > --- POWER (1) -------- (None) > --- PROPULSION (5) --- Heavy Siege Treads Centrium Leg > --- UTILITY (16) ----- Machine Analyzer Improved Salvage Targeting Computer Advanced Target Analyzer Hacking Suite Improved System Shield Relay Coupler [NC] (35) Relay Coupler [Sentry] (21) Advanced Drone Bay (2/2) > --- WEAPON (3) ------- (None) > --- INVENTORY (5) ---- Quantum Reactor Improved Field Recycling Unit (0) Advanced Remote Datajack Peak State ------------ > --- POWER ------------ Compact Particle Reactor > --- PROPULSION ------- Improved Gravmag System Improved Gravmag System Improved Antigrav System Improved Linear Gravjet > --- UTILITY ---------- Machine Analyzer Improved Salvage Targeting Computer Advanced Reaction Control System Experimental Thermal Defense Suite Hacking Suite Hacking Suite Improved Hacking Suite Advanced Hacking Suite System Shield Improved System Shield Improved System Shield Long-range Tractor Beam > --- WEAPON ----------- Heavy Gatling Laser Quantum Rifle Railgun > --- INVENTORY -------- Makeshift Power Source Relay Coupler [NC] Relay Coupler [Sentry] Improved Field Recycling Unit Long-range Missile Launcher [Rating: 112] Favorites ----------- Power Enhanced Nuclear Core Engine Heavy Ion Engine Power Core Enhanced Nuclear Core Reactor Compact Particle Reactor Propulsion Improved VTOL Module Treads Light Treads Leg Aluminum Leg Hover Unit Improved Gravmag System Flight Unit Improved VTOL Module Utility Hacking Suite Device Advanced Reaction Control System Storage Small Storage Unit Processor Improved Salvage Targeting Computer Hackware Hacking Suite Weapon Railgun Energy Gun Pulse Rifle Energy Cannon Enhanced Nova Cannon Ballistic Gun Railgun Ballistic Cannon Mini Assault Cannon Launcher Micro-nuke Launcher Special Weapon Advanced Remote Datajack Special Melee Weapon Improved Datajack Build | -11 -10 -9 -9 -9 -8 -8 -7 -6 -5 -4 -4 -4 -4 -4 -3 -2 -2 -1 ------- Run | Yrd Mat Mat Min Exi Min Mat Fac Fac Fac Fac Gar Fac Upp Upp Res Res DSF Acc Slots Evolved 18 | . . 2 . . . 2 2 2 2 2 . . . . 2 2 . 2 Power . | . . . . . . . . . . . . . . . . . . . Propulsion 3 | . . . . . . 1 . 1 . . . . . . 1 . . . Utility 14 | . . 1 . . . 1 2 1 2 2 . . . . 1 2 . 2 Weapon 1 | . . 1 . . . . . . . . . . . . . . . . Parts Attached 117 | . 9 9 2 . . 5 8 17 17 2 5 7 3 . 15 1 1 16 Power 9 | . 1 2 . . . . . 3 . . . . 1 . 1 . . 1 Engine 6 | . 1 2 . . . . . 2 . . . . 1 . . . . . Core 1 | . . . . . . . . 1 . . . . . . . . . . Reactor 2 | . . . . . . . . . . . . . . . 1 . . 1 Propulsion 23 | . 2 2 1 . . 3 . 2 4 . . 3 . . 1 1 . 4 Treads 3 | . 2 . . . . . . . . . . . . . . . . 1 Leg 1 | . . . . . . . . . . . . . . . . . . 1 Wheel . | . . . . . . . . . . . . . . . . . . . Hover 8 | . . 2 1 . . . . . . . . 3 . . 1 . . 1 Flight 11 | . . . . . . 3 . 2 4 . . . . . . 1 . 1 Utility 37 | . 2 1 . . . 2 6 6 6 1 . 2 2 . 4 . 1 4 Device 8 | . . . . . . . . . . . . 2 1 . 3 . 1 1 Storage 4 | . 1 . . . . . 2 1 . . . . . . . . . . Processor 5 | . . . . . . 1 . 1 . . . . 1 . 1 . . 1 Hackware 20 | . 1 1 . . . 1 4 4 6 1 . . . . . . . 2 Protection . | . . . . . . . . . . . . . . . . . . . Artifact . | . . . . . . . . . . . . . . . . . . . Weapon 48 | . 4 4 1 . . . 2 6 7 1 5 2 . . 9 . . 7 Energy Gun 15 | . . 4 1 . . . . . 5 1 . . . . 4 . . . Energy Cannon 3 | . . . . . . . . . . . . . . . . . . 3 Ballistic Gun 17 | . 4 . . . . . . 6 . . 4 2 . . 1 . . . Ballistic Cannon 1 | . . . . . . . 1 . . . . . . . . . . . Launcher 8 | . . . . . . . . . 1 . . . . . 4 . . 3 Special Weapon 1 | . . . . . . . . . . . . . . . . . . 1 Impact Weapon . | . . . . . . . . . . . . . . . . . . . Slashing Weapon . | . . . . . . . . . . . . . . . . . . . Piercing Weapon . | . . . . . . . . . . . . . . . . . . . Special Melee Weapon 3 | . . . . . . . 1 . 1 . 1 . . . . . . . Unidentified Prototypes 10 | . . 1 . . . 1 . 1 3 . . . . . 4 . . . Parts Lost 38 | . 1 . . . 1 1 2 1 3 . 5 . 1 . 15 . . 8 Power 2 | . 1 . . . . . . . . . . . . . 1 . . . Propulsion 16 | . . . . . 1 1 . . 3 . 2 . . . 6 . . 3 Utility 11 | . . . . . . . 1 . . . 2 . 1 . 5 . . 2 Weapon 9 | . . . . . . . 1 1 . . 1 . . . 3 . . 3 Highest Loss Streak 9 | . 1 . . . 1 1 2 1 3 . 3 . 1 . 9 . . 6 To Critical Strikes . | . . . . . . . . . . . . . . . . . . . Average Slot Usage (%) 77 | . 96 94 92 77 73 60 81 85 79 76 75 75 77 84 82 28 30 32 Engine 3 | . 13 11 11 11 11 . . . . . . . . 5 . . . . Core 1 | . . . . . . . . 3 5 5 5 5 5 . . . . . Treads 2 | . 11 17 . . . . . . . . . . . . . . . . Leg 1 | . 16 . . . . . . . . . . . . . . . . . Hover 5 | . . 4 22 22 18 1 . . . . . 12 15 15 17 . . . Flight 9 | . . . . . . 21 23 23 15 15 13 5 5 5 1 2 4 1 Storage 6 | . 23 11 11 11 11 9 8 6 2 . . . . . . . . . Processor 2 | . . . . . . . . 2 . . . . 2 5 8 8 8 9 Hackware 27 | . 1 18 22 22 22 18 34 34 47 47 45 42 37 36 30 17 17 14 Energy Gun 5 | . . 15 25 11 11 9 4 . 2 3 . . . . 3 . . . Ballistic Gun 6 | . 28 16 . . . . . 9 2 . 8 9 10 10 6 . . . Special Melee Weapon 1 | . . . . . . . 5 1 . 5 2 . . . . . . . Naked Turns . | . . . . . . . . . . . . . . . . . . . Heaviest Build 45 | 10 16 22 22 16 16 8 15 22 23 14 26 20 20 19 45 . 1 38 Greatest Support 70 | 20 40 40 16 16 16 15 15 22 24 17 20 30 30 30 42 15 15 70 Greatest Overweight (x) 10 | . . 2 2 . 1 1 . . 2 . 1 1 . . 1 . . 10 Average Overweight (x) . | . . . . . . . . . . . . . . . . . . . Largest Inventory Capacity 10 | . 8 8 8 8 8 8 10 10 8 5 5 5 5 5 5 5 5 5 Average Capacity 6 | . 8 8 8 8 8 8 8 8 6 5 5 5 5 5 5 5 5 5 Most Carried 9 | . 8 8 8 8 8 8 9 8 8 4 5 5 5 5 5 5 5 5 Average Carried 6 | . 7 7 7 7 8 8 7 7 6 3 4 4 4 5 4 5 5 3 Final Capacity 10 | 8 8 8 8 8 8 8 10 8 5 5 5 5 5 5 5 5 5 5 Final Carried 8 | 6 8 8 8 8 8 8 8 8 4 3 5 5 5 5 5 5 5 3 Class Distribution -------------------- 25% | Hacker-Sprinter 20% | Hacker-Mutant 16% | Wizard-Mutant 11% | Mutant 10% | Wizard-Sprinter 10% | Hacker-Gunner 4% | Wizard-Skirmisher Dominant Class ---------------- Mutant | -10/Materials Hacker-Gunner | -9/Materials Hacker-Gunner | -9/Mines Hacker-Mutant | -9/Exiles Hacker-Mutant | -8/Mines Hacker-Sprinter | -8/Materials Hacker-Sprinter | -7/Factory Hacker-Sprinter | -6/Factory Wizard-Mutant | -5/Factory Wizard-Sprinter | -4/Factory Wizard-Sprinter | -4/Garrison Wizard-Mutant | -4/Factory Wizard-Mutant | -4/Upper Caves Wizard-Mutant | -4/Upper Caves Wizard-Skirmisher | -3/Research Hacker-Mutant | -2/Research Hacker-Mutant | -2/DSF Hacker-Mutant | -1/Access Resources | -11 -10 -9 -9 -9 -8 -8 -7 -6 -5 -4 -4 -4 -4 -4 -3 -2 -2 -1 ----------- Run | Yrd Mat Mat Min Exi Min Mat Fac Fac Fac Fac Gar Fac Upp Upp Res Res DSF Acc Matter Collected 2091 | 200 357 130 145 . . . 115 253 87 . 215 . 84 . 346 . 9 150 Remotely 269 | . . . . . . . . . . . . . . . 269 . . . Salvage Created 2567 | . 387 390 155 . . . 293 76 225 . 278 . 17 . 588 . . 158 Parts 134 | . 21 21 12 . . . 14 4 15 . 13 . . . 28 . . 6 Haulers Intercepted 4 | . 1 1 . . . . . . 1 . . . . . 1 . . . Recyclers Shooed . | . . . . . . . . . . . . . . . . . . . Parts Field Recycled 9 | . . . . . . . . . . . . . . . 9 . . . Retrieved Matter 64 | . . . . . . . . . . . . . . . 64 . . . Parts Self-Destructed . | . . . . . . . . . . . . . . . . . . . Prevented . | . . . . . . . . . . . . . . . . . . . Kills | -11 -10 -9 -9 -9 -8 -8 -7 -6 -5 -4 -4 -4 -4 -4 -3 -2 -2 -1 ------- Run | Yrd Mat Mat Min Exi Min Mat Fac Fac Fac Fac Gar Fac Upp Upp Res Res DSF Acc Combat Hostiles Destroyed 50 | . 10 8 6 . . . 4 3 5 . 4 . . . 7 . . 3 Guns 31 | . 10 8 6 . . . . 1 . . 4 . . . 2 . . . Cannons 5 | . . . . . . . 1 2 . . . . . . . . . 2 AOE 14 | . . . . . . . 3 . 5 . . . . . 5 . . 1 Classes Destroyed 15 | . 4 2 3 . . . 2 1 . . 1 . . . 1 . . 1 Worker 4 | . . . 1 . . . 1 . . . . . . . 2 . . . Builder 3 | . . . 1 . . . . 1 . . . . . . 1 . . . Hauler 4 | . 1 1 . . . . . . 1 . . . . . 1 . . . Recycler 2 | . . . . . . . 2 . . . . . . . . . . . Mechanic 2 | . . . . . . . 1 . 1 . . . . . . . . . Operator 4 | . 1 1 . . . . 1 . 1 . . . . . . . . . Watcher 2 | . . 1 . . . . . . 1 . . . . . . . . . Swarmer 14 | . 3 . 4 . . . 3 . 4 . . . . . . . . . Grunt 22 | . 7 6 1 . . . 1 2 1 . 1 . . . 3 . . . Brawler 1 | . . . 1 . . . . . . . . . . . . . . . Duelist 1 | . . . . . . . . . . . . . . . 1 . . . Protector 1 | . . . . . . . . 1 . . . . . . . . . . Sentry 5 | . . 2 . . . . . . . . 2 . . . 1 . . . Hunter 2 | . . . . . . . . . . . . . . . . . . 2 Programmer 4 | . . . . . . . . . . . 1 . . . 2 . . 1 Decomposer 1 | . . . . . . . . . . . . . 1 . . . . . Best Kill Streak 6 | . 3 5 4 . . . 5 2 6 . 3 . . . 6 . . 1 Combat Bots Only 4 | . 3 4 4 . . . 2 2 4 . 3 . . . 4 . . 1 Max Kills in Single Turn 5 | . 2 2 1 . . . 5 1 4 . 1 . 1 . 3 . . 1 Gunslinging 1 | . 1 . . . . . . . . . . . . . . . . . Exploded 3 | . . . . . . . 1 . 3 . . . . . 3 . . 1 Melee . | . . . . . . . . . . . . . . . . . . . Uniques/NPCs Destroyed . | . . . . . . . . . . . . . . . . . . . Combat | -11 -10 -9 -9 -9 -8 -8 -7 -6 -5 -4 -4 -4 -4 -4 -3 -2 -2 -1 -------- Run | Yrd Mat Mat Min Exi Min Mat Fac Fac Fac Fac Gar Fac Upp Upp Res Res DSF Acc Hostile Shots Fired 630 | . 91 13 18 . 3 . 23 34 15 2 40 1 . . 211 . 25 154 Missed 243 | . 28 3 3 . . . 14 17 9 1 12 . . . 92 . 15 49 Damage Taken 7736 | . 665 121 320 . 57 . 299 237 342 22 555 24 11 . 2319 . 159 2605 Core 3657 | . 113 25 233 . 20 . 182 39 18 . 121 . . . 1168 . 121 1617 Absorbed by Shields 76 | . . . . . . . . . . . . . . . . . . 76 Regen/Repaired (Parts) 213 | . . . . . . . . 163 . 50 . . . . . . . . Core Remaining (%) 74 | 100 54 . . . 30 100 74 95 98 . . . . 89 10 . 91 . Volleys Fired 188 | . 59 15 14 . . . 13 16 3 1 15 1 3 . 19 . . 29 Largest 3 | . 2 3 3 . . . 2 2 2 1 3 2 2 . 3 . . 1 Hottest 189 | . 46 111 189 . . . 93 76 93 65 105 70 70 . 184 . . 120 Shots Fired 357 | . 118 45 37 . . . 14 26 4 1 41 2 6 . 35 . . 28 Gun 292 | . 118 45 37 . . . 3 10 4 1 41 2 6 . 25 . . . Cannon 48 | . . . . . . . 11 16 . . . . . . . . . 21 Launcher 15 | . . . . . . . . . . . . . . . 10 . . 5 Special 2 | . . . . . . . . . . . . . . . . . . 2 Kinetic 250 | . 118 30 . . . . 11 26 1 . 41 2 6 . 15 . . . Thermal 83 | . . 15 37 . . . . . . . . . . . 10 . . 21 Explosive 15 | . . . . . . . . . . . . . . . 10 . . 5 Electromagnetic 7 | . . . . . . . 3 . 3 1 . . . . . . . . Robot Hit Streak 17 | . 8 10 4 . . . 4 8 2 2 17 . 4 . 6 . . 3 Robot Miss Streak 7 | . 7 3 3 . . . 6 4 1 . 2 . 1 . 3 . . 2 Penetration Max 1 | . . . . . . . . 1 . . . . . . . . . . Secondary Targets 7 | . 2 1 3 . . . . . . . . . . . 1 . . . Max Gunslinging Chain 1 | . 1 1 1 . . . . . . . . . . . 1 . . . Shots Hit Robots 214 | . 74 35 22 . . . 5 16 2 1 26 . 4 . 18 . . 11 Core Hits 141 | . 21 34 9 . . . 15 9 10 . 12 . 1 . 24 . . 6 Critical Kills 1 | . . . . . . . . . . . 1 . . . . . . . Critical Parts Destroyed 2 | . 1 . . . . . . . . . 1 . . . . . . . Critical Strikes 3 | . 1 . . . . . . . . . 2 . . . . . . . Destroy 3 | . 1 . . . . . . . . . 2 . . . . . . . Melee Attacks 1 | . . . . . . . 1 . . . . . . . . . . . Impact . | . . . . . . . . . . . . . . . . . . . Slashing . | . . . . . . . . . . . . . . . . . . . Piercing . | . . . . . . . . . . . . . . . . . . . Sneak Attacks 1 | . . . . . . . 1 . . . . . . . . . . . Combat Hostiles . | . . . . . . . . . . . . . . . . . . . Follow-up Attacks . | . . . . . . . . . . . . . . . . . . . Damage Inflicted 7943 | . 873 564 370 . . . 824 1110 1048 28 648 . 124 . 1660 . . 694 Guns 3254 | . 865 564 370 . . . 39 154 69 28 648 . 102 . 415 . . . Cannons 679 | . . . . . . . 31 285 . . . . . . . . . 363 Explosions 3859 | . . . . . . . 754 671 979 . . . . . 1130 . . 325 Melee . | . . . . . . . . . . . . . . . . . . . Ramming 151 | . 8 . . . . . . . . . . . 22 . 115 . . 6 Kinetic 2697 | . 865 349 . . . . 31 439 . . 648 . 102 . 263 . . . Thermal 2733 | . . 215 370 . . . 599 671 363 . . . . . 152 . . 363 Explosive 1833 | . . . . . . . . . 616 . . . . . 892 . . 325 Electromagnetic 529 | . . . . . . . 194 . 69 28 . . . . 238 . . . Impact . | . . . . . . . . . . . . . . . . . . . Slashing . | . . . . . . . . . . . . . . . . . . . Piercing . | . . . . . . . . . . . . . . . . . . . Highest Corruption 11 | . . . . . . . 1 . . . 1 1 5 5 2 . . 11 Average Corruption 4 | . . . . . . . 1 . . . 1 1 4 5 2 . . 10 Corruption Purged . | . . . . . . . . . . . . . . . . . . . Corruption Blocked . | . . . . . . . . . . . . . . . . . . . Effects 28 | . . . . . . . 2 . . . . 4 4 1 1 . . 16 Message Errors 9 | . . . . . . . . . . . . 4 1 1 . . . 3 Matter Fused 5 | . . . . . . . . . . . . . . . . . . 5 Heat Flow Errors 5 | . . . . . . . . . . . . . 1 . 1 . . 3 Energy Discharges 4 | . . . . . . . . . . . . . 1 . . . . 3 Data Loss (major) 3 | . . . . . . . 2 . . . . . 1 . . . . . Misdirections 1 | . . . . . . . . . . . . . . . . . . 1 Weapon Failures 1 | . . . . . . . . . . . . . . . . . . 1 Overload Shots . | . . . . . . . . . . . . . . . . . . . Overflow Damage 280 | . . . . . . . 95 20 77 . . . 5 . 62 . . 21 Projectiles . | . . . . . . . . . . . . . . . . . . . Explosions 234 | . . . . . . . 95 20 77 . . . . . 21 . . 21 Melee 46 | . . . . . . . . . . . . . 5 . 41 . . . Knockbacks 4 | . 1 . . . . . . 3 . . . . . . . . . . Impact 1 | . 1 . . . . . . . . . . . . . . . . . Kinetic 3 | . . . . . . . . 3 . . . . . . . . . . Secondary . | . . . . . . . . . . . . . . . . . . . Self-Inflicted Damage 363 | . . . . . . . 67 . . . . . 11 . 162 . . 123 Shots 8 | . . . . . . . 2 . . . . . . . 3 . . 3 Rammed 6 | . 1 . . . . . . . . . . . 1 . 3 . . 1 Targets Rammed 7 | . 2 . . . . . . . . . . . 1 . 3 . . 1 Kicked 1 | . 1 . . . . . . . . . . . . . . . . . Crushed . | . . . . . . . . . . . . . . . . . . . Highest Temperature 702 | . 12 179 702 . . . 9 . 23 3 66 . 218 . 256 . . 317 Average Temperature 129 | . 4 67 285 . . . 9 . 10 3 30 . 112 . 104 . . 104 Received Heat Transfer 978 | . 312 72 . . 27 . 21 63 18 . 150 . . . 114 . . 201 Effects 14 | . . . 14 . . . . . . . . . . . . . . . Shutdowns 2 | . . . 2 . . . . . . . . . . . . . . . Energy Bleed 1 | . . . 1 . . . . . . . . . . . . . . . Interference 4 | . . . 4 . . . . . . . . . . . . . . . Matter Decay 1 | . . . 1 . . . . . . . . . . . . . . . Short Circuit 1 | . . . 1 . . . . . . . . . . . . . . . Damage (minor) 2 | . . . 2 . . . . . . . . . . . . . . . Damage (core) 3 | . . . 3 . . . . . . . . . . . . . . . Siege Activations . | . . . . . . . . . . . . . . . . . . . Robots Corrupted . | . . . . . . . . . . . . . . . . . . . Combat Hostiles . | . . . . . . . . . . . . . . . . . . . Parts Fried 1 | . . . . . . . . . . . . . . . 1 . . . Impact Corruptions 3 | . . . . . . . . . . . . . 1 . 2 . . . Robots Melted . | . . . . . . . . . . . . . . . . . . . Combat Hostiles . | . . . . . . . . . . . . . . . . . . . Parts Melted . | . . . . . . . . . . . . . . . . . . . Heat Transferred 2653 | . . 270 814 . . . 450 400 200 . . . . . 223 . . 296 Parts Sabotaged . | . . . . . . . . . . . . . . . . . . . Parts Stolen . | . . . . . . . . . . . . . . . . . . . Parts Stripped . | . . . . . . . . . . . . . . . . . . . Power Chain Reactions 1 | . . . . . . . 1 . . . . . . . . . . . Alert | -11 -10 -9 -9 -9 -8 -8 -7 -6 -5 -4 -4 -4 -4 -4 -3 -2 -2 -1 ------- Run | Yrd Mat Mat Min Exi Min Mat Fac Fac Fac Fac Gar Fac Upp Upp Res Res DSF Acc Peak Influence 663 | . 214 316 273 . . 120 402 663 304 33 169 103 . . 566 211 158 380 Initial 205 | . . 70 123 . . . 54 196 91 . 19 88 . . 28 205 158 103 Average 177 | . 87 213 146 . . 89 121 521 131 1 89 90 . . 135 208 158 224 Maximum Alert Level 2 | . 1 1 1 . . . 2 2 1 . . . . . 2 1 . 1 Low Security (%) 71 | . 91 42 84 . 100 100 79 8 80 100 100 100 . . 73 . 100 56 Level 1 16 | . 8 57 15 . . . 18 . 19 . . . . . 18 100 . 43 Level 2 12 | . . . . . . . 1 91 . . . . . . 8 . . . Level 3 . | . . . . . . . . . . . . . . . . . . . Level 4 . | . . . . . . . . . . . . . . . . . . . Level 5 . | . . . . . . . . . . . . . . . . . . . High Security . | . . . . . . . . . . . . . . . . . . . Max Security . | . . . . . . . . . . . . . . . . . . . Squads Dispatched 35 | . 4 2 . . . 4 6 5 2 1 . . . . 4 1 . 6 Investigation 15 | . 3 1 . . . 3 3 . 1 1 . . . . 1 1 . 1 Extermination 3 | . . . . . . . . . 1 . . . . . 1 . . 1 Reinforcement 11 | . 1 1 . . . 1 3 3 . . . . . . 1 . . 1 Assault 2 | . . . . . . . . 2 . . . . . . . . . . Garrison 4 | . . . . . . . . . . . . . . . 1 . . 3 Intercept . | . . . . . . . . . . . . . . . . . . . Searches Triggered . | . . . . . . . . . . . . . . . . . . . Construction Impeded 3 | . . . . . . . 1 1 . . . . . . 1 . . . Haulers Reinforced 2 | . . . . . . . 1 1 . . . . . . . . . . Active Scanning Responses . | . . . . . . . . . . . . . . . . . . . Cargo Convoy Interrupts . | . . . . . . . . . . . . . . . . . . . Stealth | -11 -10 -9 -9 -9 -8 -8 -7 -6 -5 -4 -4 -4 -4 -4 -3 -2 -2 -1 --------- Run | Yrd Mat Mat Min Exi Min Mat Fac Fac Fac Fac Gar Fac Upp Upp Res Res DSF Acc Distress Signals 8 | . 1 1 . . . . 2 . . . . . . . 2 . . 2 Communications Jammed . | . . . . . . . . . . . . . . . . . . . Distress Signals . | . . . . . . . . . . . . . . . . . . . Times Spotted 153 | . 20 12 6 . 6 1 17 17 12 3 10 2 . . 32 . 2 13 Peak Tracking Total 17 | . 5 6 4 . 3 3 4 5 4 3 9 3 . . 17 . 3 7 Tactical Retreats 25 | . . . . . . 1 6 1 6 1 2 . . . 3 . 1 4 Traps | -11 -10 -9 -9 -9 -8 -8 -7 -6 -5 -4 -4 -4 -4 -4 -3 -2 -2 -1 ------- Run | Yrd Mat Mat Min Exi Min Mat Fac Fac Fac Fac Gar Fac Upp Upp Res Res DSF Acc Traps Triggered 9 | . 1 . . . . . 3 . . . 1 . . . 1 . . 3 Indirectly 1 | . . . . . . . . . . . . . . . 1 . . . Trap Hack Attempts 23 | . . . . . . . 21 . . . 2 . . . . . . . Triggered . | . . . . . . . . . . . . . . . . . . . Disarmed 5 | . . . . . . . 3 . 1 . 1 . . . . . . . Reprogrammed 28 | . . . . . . . 16 . 12 . . . . . . . . . Reused 2 | . . . . . . . 1 . 1 . . . . . . . . . Traps Extracted . | . . . . . . . . . . . . . . . . . . . Installed . | . . . . . . . . . . . . . . . . . . . Triggered 3 | . . . . . . . 1 . 1 . . . . . 1 . . . Most Traps Carried 1 | . . . 1 1 . . . . . . . . . . . . . . Objects Rigged 36 | . . . . . . . 19 . 16 . . . . . 1 . . . Exploded 8 | . . . . . . . 4 . 3 . . . . . 1 . . . Machines | -11 -10 -9 -9 -9 -8 -8 -7 -6 -5 -4 -4 -4 -4 -4 -3 -2 -2 -1 ---------- Run | Yrd Mat Mat Min Exi Min Mat Fac Fac Fac Fac Gar Fac Upp Upp Res Res DSF Acc Machines Disabled 41 | . . . . . . . 16 9 7 . 1 . . . 6 . . 2 Max in Single Turn 9 | . . . . . . . 9 9 3 . 1 . . . 2 . . 1 Garrison Access 5 | . . . . . . 1 1 2 . . . 1 . . . . . . Garrison Relay 1 | . . . . . . . . . . . 1 . . . . . . . Machines Repaired . | . . . . . . . . . . . . . . . . . . . Machines Dismantled . | . . . . . . . . . . . . . . . . . . . Machines Sabotaged . | . . . . . . . . . . . . . . . . . . . Overloaded Fab Kills . | . . . . . . . . . . . . . . . . . . . Hacking | -11 -10 -9 -9 -9 -8 -8 -7 -6 -5 -4 -4 -4 -4 -4 -3 -2 -2 -1 --------- Run | Yrd Mat Mat Min Exi Min Mat Fac Fac Fac Fac Gar Fac Upp Upp Res Res DSF Acc Machines Accessed 53 | . 3 2 . 2 . 4 12 6 12 3 1 2 . . 2 2 . 2 Terminals 34 | . 2 2 . . . 2 9 3 9 . 1 . . . 2 2 . 2 Fabricators 3 | . . . . . . . 1 1 . 1 . . . . . . . . Repair Stations 4 | . . . . . . . 1 1 . 1 . 1 . . . . . . Recycling Units 3 | . 1 . . . . . . . 2 . . . . . . . . . Scanalyzers 2 | . . . . . . 1 . . 1 . . . . . . . . . Garrison Access 5 | . . . . . . 1 1 1 . 1 . 1 . . . . . . Total Hacks 283 | . 10 5 . 2 . 18 56 34 111 8 10 2 . . 18 5 . 4 Successful 213 | . 7 3 . 2 . 12 50 23 87 8 7 2 . . 9 2 . 1 Failed 70 | . 3 2 . . . 6 6 11 24 . 3 . . . 9 3 . 3 Catastrophic 5 | . . . . . . 1 1 . 2 . . . . . . . . 1 Database Lockouts . | . . . . . . . . . . . . . . . . . . . Manual 145 | . 4 2 . 1 . 3 29 20 62 2 9 . . . 11 1 . 1 Terminals 226 | . 8 5 . . . 10 49 19 98 . 10 . . . 18 5 . 4 Fabricators 17 | . . . . . . . 3 9 . 5 . . . . . . . . Repair Stations 7 | . . . . . . . 2 2 . 2 . 1 . . . . . . Recycling Units 9 | . 2 . . . . . . . 7 . . . . . . . . . Scanalyzers 11 | . . . . . . 5 . . 6 . . . . . . . . . Garrison Access 11 | . . . . . . 3 2 4 . 1 . 1 . . . . . . Terminal Hacks 127 | . 2 3 . 2 . 6 30 11 60 . 5 . . . 5 2 . 1 Record 2 | . . . . 1 . . . 1 . . . . . . . . . . Part Schematic 7 | . . . . . . . 1 . 6 . . . . . . . . . Robot Schematic 4 | . . . . . . . 2 . 2 . . . . . . . . . Robot Analysis 1 | . . . . . . . . . 1 . . . . . . . . . Prototype ID Bank 5 | . . . . . . 1 1 1 2 . . . . . . . . . Open DSF 1 | . . . . . . . . . . . . . . . . 1 . . Level Access Points 4 | . . . . . . . 1 . 1 . . . . . 1 . . 1 Branch Access Points 5 | . . . . . . 1 1 1 1 . . . . . 1 . . . Emergency Access Points 6 | . . . . . . . 2 . 4 . . . . . . . . . Machine Index 2 | . . . . . . . 1 . 1 . . . . . . . . . Terminal Index 5 | . . 1 . . . . 1 . 2 . 1 . . . . . . . Garrison Index 2 | . . . . . . . 1 . 1 . . . . . . . . . Alert Level 10 | . . . . . . 1 3 1 5 . . . . . . . . . Unreport Threat 10 | . . . . . . . 2 2 6 . . . . . . . . . Locate Traps 9 | . . . . . . 1 2 1 4 . . . . . . 1 . . Disarm Traps 2 | . . . . . . . . . 2 . . . . . . . . . Reprogram Traps 7 | . . . . . . . 3 . 4 . . . . . . . . . Dispatch Records 7 | . 1 . . . . 1 1 1 2 . . . . . 1 . . . Maintenance Status 1 | . . . . . . . . . 1 . . . . . . . . . Security Status 4 | . . . . . . . 1 . 3 . . . . . . . . . Surveillance Status 2 | . . . . . . . . . 2 . . . . . . . . . Patrol Status 4 | . . . . . . . 2 . 2 . . . . . . . . . Extermination Status 1 | . . . . . . . . . . . . . . . 1 . . . Reinforcement Status 1 | . . 1 . . . . . . . . . . . . . . . . Recall Investigation 4 | . . 1 . . . 1 1 . 1 . . . . . . . . . Recall Extermination 2 | . . . . . . . . . 1 . . . . . 1 . . . Recall Reinforcements 3 | . . . . . . . 2 1 . . . . . . . . . . Hauler Manifests 1 | . . . . . . . . 1 . . . . . . . . . . Registered Components 2 | . . . . . . . 1 . 1 . . . . . . . . . Registered Prototypes 1 | . . . . . . . . . 1 . . . . . . . . . Zone Layout 7 | . 1 . . . . . 1 1 4 . . . . . . . . . Garrison Registry 2 | . . . . . . . . . . . 2 . . . . . . . Patrol Navigation 1 | . . . . . . . . . . . 1 . . . . . . . Security Stations 1 | . . . . . . . . . . . 1 . . . . . . . Derelict Proto ID Bank 1 | . . . . 1 . . . . . . . . . . . . . . Fabricator Hacks 10 | . . . . . . . 2 5 . 3 . . . . . . . . Network Status 2 | . . . . . . . 1 . . 1 . . . . . . . . Load Schematic 4 | . . . . . . . . 3 . 1 . . . . . . . . Build 4 | . . . . . . . 1 2 . 1 . . . . . . . . Repair Station Hacks 7 | . . . . . . . 2 2 . 2 . 1 . . . . . . Scan Component 4 | . . . . . . . 1 1 . 1 . 1 . . . . . . Repair 3 | . . . . . . . 1 1 . 1 . . . . . . . . Recycling Unit Hacks 7 | . 2 . . . . . . . 5 . . . . . . . . . Process 1 | . . . . . . . . . 1 . . . . . . . . . Report Inventory 3 | . 1 . . . . . . . 2 . . . . . . . . . Retrieve Matter 1 | . . . . . . . . . 1 . . . . . . . . . Retrieve Components 2 | . 1 . . . . . . . 1 . . . . . . . . . Scanalyzer 10 | . . . . . . 4 . . 6 . . . . . . . . . Insert Component 5 | . . . . . . 2 . . 3 . . . . . . . . . Analyze 5 | . . . . . . 2 . . 3 . . . . . . . . . Garrison Access Hacks 5 | . . . . . . 1 1 1 . 1 . 1 . . . . . . Unlock Access 1 | . . . . . . . . . . 1 . . . . . . . . Seal Access 4 | . . . . . . 1 1 1 . . . 1 . . . . . . Unauthorized Hacks 47 | . 3 . . . . 1 15 4 16 2 2 . . . 4 . . . Terminals 40 | . 3 . . . . . 13 2 16 . 2 . . . 4 . . . Track 5 | . 1 . . . . . 1 . 3 . . . . . . . . . Assimilate 8 | . . . . . . . 3 1 3 . . . . . 1 . . . Botnet 14 | . 1 . . . . . 4 1 6 . 1 . . . 1 . . . Detonate 6 | . . . . . . . 3 . 2 . . . . . 1 . . . Disrupt 4 | . . . . . . . 1 . 1 . 1 . . . 1 . . . Operators 3 | . 1 . . . . . 1 . 1 . . . . . . . . . Fabricators 4 | . . . . . . . 1 1 . 2 . . . . . . . . Prioritize 3 | . . . . . . . 1 1 . 1 . . . . . . . . Fabnet 1 | . . . . . . . . . . 1 . . . . . . . . Repair Stations . | . . . . . . . . . . . . . . . . . . . Recycling Units . | . . . . . . . . . . . . . . . . . . . Scanalyzers 1 | . . . . . . 1 . . . . . . . . . . . . Extract 1 | . . . . . . 1 . . . . . . . . . . . . Garrison Access 2 | . . . . . . . 1 1 . . . . . . . . . . Watchers 2 | . . . . . . . 1 1 . . . . . . . . . . Data Cores Recovered . | . . . . . . . . . . . . . . . . . . . Used . | . . . . . . . . . . . . . . . . . . . Hacking Detections 40 | . 3 2 . . . 3 11 4 10 1 1 . . . 2 1 . 2 Full Trace Events 12 | . 2 1 . . . 2 3 . 1 1 . . . . . 1 . 1 Feedback Events . | . . . . . . . . . . . . . . . . . . . Feedback Blocked . | . . . . . . . . . . . . . . . . . . . Robot Schematics Acquired 4 | . . . . . . . 2 . 2 . . . . . . . . . Robots Built 6 | . . . . . . . . 6 . . . . . . . . . . Authchips 2 | . . . . . . . . 2 . . . . . . . . . . Time 100 | . . . . . . . . 100 . . . . . . . . . . Total Robot Build Rating 24 | . . . . . . . . 24 . . . . . . . . . . Part Schematics Acquired 14 | . . . . . . 4 1 . 9 . . . . . . . . . Parts Built 2 | . . . . . . . 1 . . 1 . . . . . . . . Authchips . | . . . . . . . . . . . . . . . . . . . Time 100 | . . . . . . . 47 . . 53 . . . . . . . . Total Part Build Rating 11 | . . . . . . . 5 . . 6 . . . . . . . . Parts Repaired 3 | . . . . . . . 1 1 . 1 . . . . . . . . Time 152 | . . . . . . . 26 70 . 56 . . . . . . . . Parts Recycled . | . . . . . . . . . . . . . . . . . . . Recycled Matter 20 | . . . . . . . . . 20 . . . . . . . . . Retrieved Matter 20 | . . . . . . . . . 20 . . . . . . . . . Retrieved Components 11 | . 2 . . . . . . . 9 . . . . . . . . . Parts Scanalyzed 5 | . . . . . . 2 . . 3 . . . . . . . . . Part Schematics Acquired 5 | . . . . . . 2 . . 3 . . . . . . . . . Parts Damaged . | . . . . . . . . . . . . . . . . . . . Bothacking | -11 -10 -9 -9 -9 -8 -8 -7 -6 -5 -4 -4 -4 -4 -4 -3 -2 -2 -1 ------------ Run | Yrd Mat Mat Min Exi Min Mat Fac Fac Fac Fac Gar Fac Upp Upp Res Res DSF Acc Used RIF Installer 1 | . . . . . . . . . . . 1 . . . . . . . Robots Hacked 2 | . . . . . . . 1 . . . . . . . . . . 1 Non-combat 1 | . . . . . . . 1 . . . . . . . . . . . Combat 1 | . . . . . . . . . . . . . . . . . . 1 Robot Hacks Applied 2 | . . . . . . . 1 . . . . . . . . . . 1 parse_system 1 | . . . . . . . . . . . . . . . . . . 1 find_chute 1 | . . . . . . . 1 . . . . . . . . . . . Relay Couplers Released 6 | . . . . . . . . 3 . . 3 . . . . . . . Machine Destruction 6 | . . . . . . . . 3 . . 3 . . . . . . . Attached 2 | . . . . . . . . . . . . . . . . . . 2 Fabnet Peak Effective % 3 | . . . . . . . . . . . . . . . 3 1 1 . Robots Rewired . | . . . . . . . . . . . . . . . . . . . Allies Hacked . | . . . . . . . . . . . . . . . . . . . Hacks Repelled . | . . . . . . . . . . . . . . . . . . . Allies | -11 -10 -9 -9 -9 -8 -8 -7 -6 -5 -4 -4 -4 -4 -4 -3 -2 -2 -1 -------- Run | Yrd Mat Mat Min Exi Min Mat Fac Fac Fac Fac Gar Fac Upp Upp Res Res DSF Acc Total Allies 13 | . . . . . . . 2 7 3 . . . . . 1 . . . Largest Group 5 | . . . . . . . 1 5 2 . . . . . 1 . . . Highest-Rated Group 94 | . . . . . . . 26 94 52 . . . . . 26 . . . Highest-Rated Ally 26 | . . . . . . . 26 26 26 . . . . . 26 . . . Total Orders . | . . . . . . . . . . . . . . . . . . . Ally Attacks 50 | . . . . . . . . 43 . 7 . . . . . . . . Total Damage 1844 | . . . . . . . . 1460 . 384 . . . . . . . . Kills 9 | . . . . . . . . 8 . 1 . . . . . . . . Allies Corrupted . | . . . . . . . . . . . . . . . . . . . Allies Melted 3 | . . . . . . . . 2 . 1 . . . . . . . . Turrets Deployed 3 | . . . . . . . . 2 . 1 . . . . . . . . Intel | -11 -10 -9 -9 -9 -8 -8 -7 -6 -5 -4 -4 -4 -4 -4 -3 -2 -2 -1 ------- Run | Yrd Mat Mat Min Exi Min Mat Fac Fac Fac Fac Gar Fac Upp Upp Res Res DSF Acc Robot Analysis Total 1 | . . . . . . . . . 1 . . . . . . . . . Derelict Logs Recovered 3 | . . . 2 . . . . . . . . . 1 . . . . . Drone Launches 2 | . . . . . . . . . . . . . . . . . . 2 Drone Recoveries 2 | . . . . . . . . . . . . . . . . . . 2 Exploration | -11 -10 -9 -9 -9 -8 -8 -7 -6 -5 -4 -4 -4 -4 -4 -3 -2 -2 -1 ------------- Run | Yrd Mat Mat Min Exi Min Mat Fac Fac Fac Fac Gar Fac Upp Upp Res Res DSF Acc Turns Passed 5761 | . 620 305 576 150 65 284 703 666 417 214 161 373 160 11 400 42 25 589 Spaces Moved 7024 | 1 315 163 580 242 94 354 1186 1005 861 129 192 254 316 24 640 64 58 546 Core 338 | . . . . . . . . . . . . . . . 25 28 . 285 Treads 199 | . 87 110 . . . . . . . . . . . . . . . 2 Legs 290 | 1 228 . . . . . . . . . . . . . . . . 61 Wheels . | . . . . . . . . . . . . . . . . . . . Hover 2287 | . . 53 580 242 94 82 . . . . . 238 316 24 615 . . 43 Flight 3910 | . . . . . . 272 1186 1005 861 129 192 16 . . . 36 58 155 Fastest Speed 27 | 120 120 116 56 56 56 29 29 27 28 32 28 45 45 45 40 40 40 37 Average Speed 50 | 120 131 146 82 56 68 36 29 28 37 32 38 53 45 45 43 44 40 75 Slowest Speed 550 | 120 160 180 180 56 120 105 29 29 205 32 108 105 45 45 120 50 40 550 Overloaded Moves 66 | . . . . . . . . . . . 66 . . . . . . . Propulsion Burnouts . | . . . . . . . . . . . . . . . . . . . Robots Hopped 49 | . . . . . . 5 17 11 15 1 . . . . . . . . Cave-ins Triggered 1 | . . . . . . . . . . . . . . . . . . 1 Exploration Rate (%) 29 | 2 46 17 87 62 35 33 33 27 23 3 32 5 53 8 21 2 64 15 Regions Visited 18 Branch Regions 5 Pre-discovered Areas 1 | . . . . 1 . . . . . . . . . . . . . . Known Exits Taken 5 | . . . . . . . 1 . 1 1 . . . . 1 1 . . Unknown Exits Taken 11 | 1 1 1 1 1 1 1 . 1 . . . 1 1 1 . . . . Scrap Searched 4 | . . . 2 . . . . . . . . . 2 . . . . . Spaces Dug 38 | . . . . . . . . . . . . . . . 36 . . 2 Terrain Destroyed 482 | . . . . . . . 106 47 96 . 3 1 3 . 161 . . 65 Melee . | . . . . . . . . . . . . . . . . . . . Projectile 18 | . . . . . . . 3 . . . 3 1 3 . 1 . . 7 AOE 464 | . . . . . . . 103 47 96 . . . . . 160 . . 58 Terrain Rammed . | . . . . . . . . . . . . . . . . . . . Walls Destroyed . | . . . . . . . . . . . . . . . . . . . Machines Disabled . | . . . . . . . . . . . . . . . . . . . Actions | -11 -10 -9 -9 -9 -8 -8 -7 -6 -5 -4 -4 -4 -4 -4 -3 -2 -2 -1 --------- Run | Yrd Mat Mat Min Exi Min Mat Fac Fac Fac Fac Gar Fac Upp Upp Res Res DSF Acc Total 8861 | . 422 196 650 258 94 501 1513 1351 939 299 249 487 326 23 728 76 59 690 Wait 1410 | . 13 1 49 9 . 145 291 311 53 167 24 224 3 . 35 12 . 73 Move 6909 | . 314 162 579 241 93 344 1151 982 830 127 191 253 315 23 639 63 57 545 Hop 48 | . . . . . . 4 17 11 15 1 . . . . . . . . Pick Up 36 | . 12 1 2 4 . . 6 4 3 . 2 . . . 2 . . . Fast Attach 71 | . 2 8 . . . 6 4 7 11 2 3 5 2 . 10 1 1 9 Attach 32 | . 3 . 1 . . . 3 5 4 . 2 2 1 . 4 . . 7 Detach 34 | . 1 . . . . 1 1 6 6 . 6 2 1 . 5 . . 5 Swap 16 | . 4 1 1 . . . 1 5 2 . . . . . 2 . . . Drop 65 | . 12 8 4 4 1 1 4 4 12 1 4 . . . 9 . 1 . Fire 188 | . 59 15 14 . . . 13 16 3 1 15 1 3 . 19 . . 29 Melee 1 | . . . . . . . 1 . . . . . . . . . . . Ram 5 | . . . . . . . . . . . . . 1 . 3 . . 1 Kick 1 | . 1 . . . . . . . . . . . . . . . . . Crush 1 | . 1 . . . . . . . . . . . . . . . . . Escape Stasis 21 | . . . . . . . . . . . . . . . . . . 21 Rewire . | . . . . . . . . . . . . . . . . . . . Trap 23 | . . . . . . . 21 . . . 2 . . . . . . . Miscellaneous . | . . . . . . . . . . . . . . . . . . . Route ------- -11/Scrapyard -10/Materials (discovered 2 exits: *Mat / [*Min]) -9/Materials (discovered 4 exits: [*Min x2] / [*Sto x2]) -9/Mines (discovered 2 exits: *Mat / *Exi) -9/Exiles -8/Mines -8/Materials -7/Factory (discovered 6 exits: *Fac x4 / *Low x2) -6/Factory (discovered 3 exits: *Fac / Low x2) -5/Factory (discovered 6 exits: *Fac x4 / *Upp x2) -4/Factory -4/Garrison (discovered 4 exits: *Fac x4) -4/Factory -4/Upper Caves -4/Upper Caves -3/Research (discovered 6 exits: *Res x3 / Arm / Qua x2) -2/Research (discovered 2 exits: Tes / DSF) -2/DSF -1/Access (discovered 1 exit: Sur) History --------- Turn | Location | Event 1 | -11/Scrapyard | Discovered new exit (range 0) 1 | -11/Scrapyard | Entered Materials 217 | -10/Materials | Discovered new exit (range 11) 309 | -10/Materials | Build established: Mutant 363 | -10/Materials | Discovered new exit (range 12) 621 | -10/Materials | Entered another Materials area 621 | -9/Materials | Evolved 2 slots: Utility x1, Weapon x1 621 | -9/Materials | Discovered new exit (range 8) 665 | -9/Materials | Discovered new exit (range 16) 825 | -9/Materials | Discovered new exit (range 6) 877 | -9/Materials | Discovered new exit (range 16) 926 | -9/Materials | Entered Mines 933 | -9/Mines | Learned location of 1 exit from Proximity Caves 962 | -9/Mines | Met a Derelict bent on vengeance 981 | -9/Mines | Found a hidden stash of uninstalled traps 1018 | -9/Mines | Build established: Hacker-Gunner 1142 | -9/Mines | A weapon hastily lodged in a ceiling crevice suddenly fell to the ground 1147 | -9/Mines | Discovered new exit (range 10) 1227 | -9/Mines | Learned Materials trap positions 1270 | -9/Mines | Core integrity fell below 50% 1458 | -9/Mines | Deemed a non-threat by the Exiles lab entrance 1458 | -9/Mines | Discovered new exit (range 5) 1502 | -9/Mines | Entered Exiles 1517 | -9/Exiles | Met 8R-AWN 1526 | -9/Exiles | Met EX-HEX 1543 | -9/Exiles | Met EX-BIN 1551 | -9/Exiles | Aligned with FarCom system 1551 | -9/Exiles | Given EX-Vault access code 1565 | -9/Exiles | Opened EX-Vault 1578 | -9/Exiles | Found Deploy-a-Sentry 1581 | -9/Exiles | Found Deploy-a-Sentry 1588 | -9/Exiles | Found Deploy-a-Sentry 1601 | -9/Exiles | Warned to stay clear of 0b10 Research branches 1608 | -9/Exiles | Build established: Hacker-Mutant 1617 | -9/Exiles | Met EX-DEC 1622 | -9/Exiles | Learned location of Zion (-6) 1637 | -9/Exiles | Discovered new exit (range 14) 1652 | -9/Exiles | Left Exiles lab with Deploy-a-Sentry 1652 | -9/Exiles | Entered Mines 1705 | -8/Mines | Discovered new exit (range 10) 1717 | -8/Mines | Entered Materials 1717 | -8/Materials | Evolved 2 slots: Propulsion x1, Utility x1 1718 | -8/Materials | Loaded intel: 24 trap records 1961 | -8/Materials | Discovered new exit (range 7) 2001 | -8/Materials | Entered Factory 2001 | -7/Factory | Evolved 2 slots: Utility x2 2062 | -7/Factory | Build established: Hacker-Sprinter 2122 | -7/Factory | Repaired Broken Airjet 2271 | -7/Factory | Fabricated Imp. System Shield (x1) 2303 | -7/Factory | Identified exit to Lower Caves 2303 | -7/Factory | Identified exit to Factory 2704 | -7/Factory | Entered another Factory area 2704 | -6/Factory | Evolved 2 slots: Propulsion x1, Utility x1 2737 | -6/Factory | DAS Turret deployed 2926 | -6/Factory | DAS Turret deployed 3054 | -6/Factory | First assault squad dispatched 3109 | -6/Factory | Fabricated B-48 Gladiator (x3) 3144 | -6/Factory | Fabricated B-48 Gladiator? 3245 | -6/Factory | Repaired Mni. Assault Cannon 3271 | -6/Factory | Spotted B-75 Beast 3290 | -6/Factory | Discovered new exit (range 16) 3304 | -6/Factory | Identified exit to Lower Caves 3370 | -6/Factory | Entered another Factory area 3370 | -5/Factory | Accompanied by 1 ally 3370 | -5/Factory | Evolved 2 slots: Utility x2 3440 | -5/Factory | Identified exit to Upper Caves 3440 | -5/Factory | Identified exit to Factory 3568 | -5/Factory | Lost 3 parts (3n) 3787 | -5/Factory | Entered another Factory area 3787 | -4/Factory | Evolved 2 slots: Utility x2 3844 | -4/Factory | Fabricated Adv. Hacking Suite? 3875 | -4/Factory | Repaired Tesla Rifle 3967 | -4/Factory | DAS Turret deployed 4001 | -4/Factory | Identified exit to Garrison 4001 | -4/Factory | Entered Garrison 4013 | -4/Garrison | Triggered checkpoint 4013 | -4/Garrison | Build established: Wizard-Sprinter 4087 | -4/Garrison | Discovered new exit (range 72) 4087 | -4/Garrison | Discovered new exit (range 62) 4087 | -4/Garrison | Discovered new exit (range 43) 4087 | -4/Garrison | Discovered new exit (range 80) 4087 | -4/Garrison | Discovered new exit (range 72) 4087 | -4/Garrison | Discovered new exit (range 62) 4087 | -4/Garrison | Discovered new exit (range 43) 4087 | -4/Garrison | Discovered new exit (range 80) 4087 | -4/Garrison | Learned Factory security intel 4089 | -4/Garrison | Garrison Relay disabled 4139 | -4/Garrison | Spotted B-86 Titan 4139 | -4/Garrison | Triggered checkpoint 4155 | -4/Garrison | Installed Relay Interface Framework 4162 | -4/Garrison | Entered Factory 4173 | -4/Factory | Lost 3 parts (2n1w) 4474 | -4/Factory | Build established: Wizard-Mutant 4479 | -4/Factory | Discovered new exit (range 15) 4535 | -4/Factory | Entered Upper Caves 4683 | -4/Upper Caves | Discovered new exit (range 13) 4695 | -4/Upper Caves | Entered another Upper Caves area 4701 | -4/Upper Caves | Discovered new exit (range 10) 4706 | -4/Upper Caves | Entered Research 4706 | -3/Research | Evolved 2 slots: Propulsion x1, Utility x1 4868 | -3/Research | Spotted B-86 Titan 4925 | -3/Research | Found Prototype Device 4925 | -3/Research | Identified Exp. Thermal Defense Suite 4941 | -3/Research | Spotted B-86 Titan 4974 | -3/Research | Identified exit to Armory 4974 | -3/Research | Identified exit to Quarantine 4974 | -3/Research | Identified exit to Research 5061 | -3/Research | Lost 3 parts (2u1w) 5081 | -3/Research | Garrison activated, responded to threat 5094 | -3/Research | Core integrity fell below 50% 5105 | -3/Research | Core integrity fell below 20% 5106 | -3/Research | Entered another Research area 5106 | -2/Research | Evolved 2 slots: Utility x2 5107 | -2/Research | Identified exit to Testing 5126 | -2/Research | Lost 9 parts (1p5n2u1w) 5147 | -2/Research | Identified exit to DSF 5148 | -2/Research | Entered DSF 5167 | -2/DSF | Discovered new exit (range 16) 5168 | -2/DSF | Additional patrols routed to DSF 5173 | -2/DSF | Entered Access 5173 | -1/Access | Evolved 2 slots: Utility x2 5191 | -1/Access | Identified exit to Surface 5318 | -1/Access | Garrison activated, responded to threat 5350 | -1/Access | Crushed by falling debris 5356 | -1/Access | Core integrity fell below 50% 5376 | -1/Access | Build established: Hacker-Mutant 5388 | -1/Access | Core integrity fell below 20% 5413 | -1/Access | Lost 6 parts (2n2u2w) 5429 | -1/Access | System corruption reached 10% 5762 | -1/Access | Destroyed by G-73 Enforcer with Phase Gun Last Messages --------------- 05656_ Field strength at 58. 05657_ Field strength at 52. 05658_ Field strength at 46. 05659_ Field strength at 35. 05660_ Field strength at 29. 05661_ Field strength at 23. 05662_ Field strength at 5. 05663_ Stasis field depleted. 05664_ Critical hit (Burn: +37). 05665_ >> Machine Analyzer network decryption results: 05665_ Scanalyzer x1 05673_ ALERT: Rogue bot located, Programmers report to Access Zone 5O. 05678_ Acquired Centrium Leg. 05680_ Acquired Adv. Drone Bay. 05693_ Advanced Drone released from Adv. Drone Bay. 05698_ System corrupted: Heat flow error (+187). 05723_ System corrupted: Energy discharge (-22). 05731_ Advanced Drone retrieved by Adv. Drone Bay. 05736_ Acquired Hvy. Siege Treads. 05743_ System corrupted: Matter fused (-1). Map ----- +----------------------------------------------------+ | + #???# + + | | # =#???# #### ###### # | | " #???# #??# #?######## | | +## " #???# #??# #? #?# | | # # #???# #??# # #?# | | # ###################"+########### # #?? | | # ^^ + #?? | | # ####### #?? | | # ^ #?????? #?? | | + ##/##############?? | | # # #????? | | # # #????? | | ? + ^ # #????? | | ??####+##+############## # #????? | | ??# #???????# # #????? | | ??# #???????# # #????? | | ??# """"" #???????# + =] #????? | | ??# """"" #???????# g# ==] #????? | | ??# """"" #???????#u # =] #????? | | ??# """"" ######### # #????? | | ??# """"" ## # #????? | | ??# ## # #????? | | ??# ## ##############????? | | ??# ## #?????????????????? | | ??############### #?????????????????? | | ???????? ??# @ #?????????????????? | | ????????? ?# #?????????????????? | | ???????""""" ?# ########?????????????????? | | ??????"""""""" # #????????????????????????? | | ??????"""""""" # #????????????Y???????????? | | ???????""""" + #????????????????????????? | | ???? # #????????????????????????? | | ???# # #????????????????????????? | | ???# ?# #????????????????????????? | | ???# "" """ ?# #????????????????????????? | | ??????""F""" ??# #????????????????????????? | | ???????""""" ??# #????????????????????????? | | ?????????####???# #????????????????????????? | | ????????????????# #????????????????????????? | | ????????????????# #????????????????????????? | | ????????????????# ###+####?????????????????? | | ????????????????# ???????????????? | | ????????????????# ???????????????? | | ????????????????# ???????????????? | | "???????????????# ????????????????? | | ""???#########??# ????????????????? | | """??? ??# ????????????????? | | ?"????? ?# ????????????????? | | ???????? ?# ########?????????????????? | | ????????""""" # #????????????????????????? | +----------------------------------------------------+ Best States ------------- Heat Dissipation 52 Energy Generation 25 Energy Capacity 350 Matter Stores 350 Matter Capacity 400 Sight Range 16 Terrain Scan Density 10 Evasion (%) 68 Target Analysis 8 Recoil Reduction 2 Salvage Targeting 2 Offensive Hacking 76 Defensive Hacking 54 Relay Coupler Types 2 Relay Coupler Value 56 Authchip Count 5 Item Schematics ----------------- Plasma Flamer | -8/Materials | Scanalyzed Airjet | -8/Materials | Scanalyzed Imp. Hover Unit | -8/Materials | Extracted Maul | -8/Materials | Extracted System Shield | -7/Factory | Hacked Field Propulsion Drive | -5/Factory | Hacked Impulse Thruster Array | -5/Factory | Hacked Adv. System Shield | -5/Factory | Hacked Adv. Hacking Suite | -5/Factory | Hacked Tesla Rifle | -5/Factory | Hacked Field Propulsion Array | -5/Factory | Hacked Lrn. Missile Launcher | -5/Factory | Scanalyzed Hvy. Proton Missile Launcher | -5/Factory | Scanalyzed Med. Storage Unit | -5/Factory | Scanalyzed Robot Schematics ------------------ Y-45 Defender | -7/Factory | Hacked B-48 Gladiator | -7/Factory | Hacked O-24 Administrator | -5/Factory | Hacked B-60 Warrior | -5/Factory | Hacked Fabricated ------------ Imp. System Shield | x1 | -7/Factory | Preloaded B-48 Gladiator | x3 | -6/Factory | Authchip B-48 Gladiator | x3 | -6/Factory | Authchip Adv. Hacking Suite | x1 | -4/Factory Alien Tech Used ----------------- None Achievements -------------- None Challenges ------------ None Game ------ Seed PointMetafieldSegregator Manual? 0 Play Time 01:05:55 Cumulative 739.2 hours Start 2024.05.24 @ 17:08:08 End 2024.05.24 @ 18:20:20 Sessions 1 Manual Loads 0 Difficulty Rogue Special Mode None Game No. 805 Rogue 530 Adventurer 123 Explorer 152 Win Type - Total 26 Types 20/0/4/1/0/0/0/1/0 Lore% 84 Gallery% 92 Achievement% 76 Wizard Run 0 Options --------- Layout 0 ASCII 0 Keyboard 1 Movement Numpad Keybinds 0 Fullscreen 2 Font 18/Terminus Map View 76x50 Zoom Use 0% Tactical HUD 1 Map Filters NONE Filters NONE Steam 1 RUN: 7c9b1c52-d462-413f-8b45-c8347a6adf99